Body Name,Body,Service division categorisation,Expense Type,Date paid,Transaction Reference,Net,Supplier Name,Redacted/Excluded
South Holland District Council,http://statistics.data.gov.uk/id/local-authority/32UF,Environmental Services,Agency Staff,04/09/2014,IJ00032325,67.50,247 Personnel Ltd,
South Holland District Council,http://statistics.data.gov.uk/id/local-authority/32UF,Environmental Services,Agency Staff,04/09/2014,IJ00032325,477.00,247 Personnel Ltd,
South Holland District Council,http://statistics.data.gov.uk/id/local-authority/32UF,Environmental Services,Agency Staff,04/09/2014,IJ00032325,274.50,247 Personnel Ltd,
South Holland District Council,http://statistics.data.gov.uk/id/local-authority/32UF,Asset and Property,Agency Staff,04/09/2014,IJ00032405,720.56,5 Star Facility Management,
South Holland District Council,http://statistics.data.gov.uk/id/local-authority/32UF,Housing Landlord Manager,Buildings Maintenance - Responsive,04/09/2014,IJ00032442,635.00,Barry Disdel,
South Holland District Council,http://statistics.data.gov.uk/id/local-authority/32UF,Housing Landlord Manager,Grounds Maintenance Contract (External),04/09/2014,IJ00032442,230.00,Barry Disdel,
South Holland District Council,http://statistics.data.gov.uk/id/local-authority/32UF,Environmental Services,Agency Staff,04/09/2014,IJ00032326,65.98,Blue Arrow Ltd,
South Holland District Council,http://statistics.data.gov.uk/id/local-authority/32UF,Environmental Services,Agency Staff,04/09/2014,IJ00032326,1299.19,Blue Arrow Ltd,
South Holland District Council,http://statistics.data.gov.uk/id/local-authority/32UF,Environmental Services,Agency Staff,04/09/2014,IJ00032326,1651.14,Blue Arrow Ltd,
South Holland District Council,http://statistics.data.gov.uk/id/local-authority/32UF,Environmental Services,Agency Staff,04/09/2014,IJ00032326,294.36,Blue Arrow Ltd,
South Holland District Council,http://statistics.data.gov.uk/id/local-authority/32UF,Environmental Services,Agency Staff,04/09/2014,IJ00032326,193.47,Blue Arrow Ltd,
South Holland District Council,http://statistics.data.gov.uk/id/local-authority/32UF,Environmental Services,Agency Staff,04/09/2014,IJ00032357,917.28,Blue Arrow Ltd,
South Holland District Council,http://statistics.data.gov.uk/id/local-authority/32UF,Environmental Services,Agency Staff,04/09/2014,IJ00032357,1029.54,Blue Arrow Ltd,
South Holland District Council,http://statistics.data.gov.uk/id/local-authority/32UF,Environmental Services,Agency Staff,04/09/2014,IJ00032357,1732.32,Blue Arrow Ltd,
South Holland District Council,http://statistics.data.gov.uk/id/local-authority/32UF,Environmental Services,Agency Staff,04/09/2014,IJ00032357,76.13,Blue Arrow Ltd,
South Holland District Council,http://statistics.data.gov.uk/id/local-authority/32UF,ICT and Customer Services,Computer Hardware Maintenance,04/09/2014,IJ00032352,701.50,British Telecom Plc,
South Holland District Council,http://statistics.data.gov.uk/id/local-authority/32UF,Finance,Telephones,04/09/2014,IJ00032479,5793.43,Bt Global Services,
South Holland District Council,http://statistics.data.gov.uk/id/local-authority/32UF,Environmental Health,Professional & Contractors Fees,04/09/2014,IJ00032422,810.00,Bureau Veritas Uk Ltd,
South Holland District Council,http://statistics.data.gov.uk/id/local-authority/32UF,Housing Landlord Manager,Void Repairs,04/09/2014,IJ00032403,580.00,Castlebuild Scaffolding Ltd,
South Holland District Council,http://statistics.data.gov.uk/id/local-authority/32UF,Housing Landlord Manager,Fuel & Oil,04/09/2014,IJ00032328,617.84,C H Jones Ltd,
South Holland District Council,http://statistics.data.gov.uk/id/local-authority/32UF,Environmental Services,Fuel & Oil,04/09/2014,IJ00032328,210.85,C H Jones Ltd,
South Holland District Council,http://statistics.data.gov.uk/id/local-authority/32UF,Environmental Services,Fuel & Oil,04/09/2014,IJ00032328,2235.47,C H Jones Ltd,
South Holland District Council,http://statistics.data.gov.uk/id/local-authority/32UF,Environmental Services,Fuel & Oil,04/09/2014,IJ00032328,599.29,C H Jones Ltd,
South Holland District Council,http://statistics.data.gov.uk/id/local-authority/32UF,Environmental Services,Fuel & Oil,04/09/2014,IJ00032328,2783.22,C H Jones Ltd,
South Holland District Council,http://statistics.data.gov.uk/id/local-authority/32UF,Housing Landlord Manager,Fuel & Oil,04/09/2014,IJ00032328,384.79,C H Jones Ltd,
South Holland District Council,http://statistics.data.gov.uk/id/local-authority/32UF,Housing Landlord Manager,Fuel & Oil,04/09/2014,IJ00032328,151.36,C H Jones Ltd,
South Holland District Council,http://statistics.data.gov.uk/id/local-authority/32UF,Environmental Services,Fuel & Oil,04/09/2014,IJ00032328,22.19,C H Jones Ltd,
South Holland District Council,http://statistics.data.gov.uk/id/local-authority/32UF,Environmental Services,Fuel & Oil,04/09/2014,IJ00032328,5.40,C H Jones Ltd,
South Holland District Council,http://statistics.data.gov.uk/id/local-authority/32UF,Housing Landlord Manager,Buildings Maintenance - Responsive,04/09/2014,IJ00032476,832.75,Cirrus Communication Systems Ltd,
South Holland District Council,http://statistics.data.gov.uk/id/local-authority/32UF,ICT and Customer Services,Computer Software Licence Costs,04/09/2014,IJ00032339,7526.72,Civica Limited,
South Holland District Council,http://statistics.data.gov.uk/id/local-authority/32UF,Community Development,External Printing and Design Costs,04/09/2014,IJ00032406,651.00,Classic Printers,
South Holland District Council,http://statistics.data.gov.uk/id/local-authority/32UF,Community Development,Postages,04/09/2014,IJ00032406,1624.35,Classic Printers,
South Holland District Council,http://statistics.data.gov.uk/id/local-authority/32UF,Community Development,External Printing and Design Costs,04/09/2014,IJ00032386,2430.00,Classic Printers,
South Holland District Council,http://statistics.data.gov.uk/id/local-authority/32UF,Finance,Other Miscellaneous Expenses,04/09/2014,IJ00032438,7059.48,Compass Point Business Srvcs (East Coast) Ltd,
South Holland District Council,http://statistics.data.gov.uk/id/local-authority/32UF,ICT and Customer Services,External Printing and Design Costs,04/09/2014,IJ00032439,4310.92,Compass Point Business Srvcs (East Coast) Ltd,
South Holland District Council,http://statistics.data.gov.uk/id/local-authority/32UF,Environmental Health,Other Miscellaneous Expenses,04/09/2014,IJ00032440,880.00,Compass Point Business Srvcs (East Coast) Ltd,
South Holland District Council,http://statistics.data.gov.uk/id/local-authority/32UF,HR,Other Employee Expenses,04/09/2014,IJ00032440,660.00,Compass Point Business Srvcs (East Coast) Ltd,
South Holland District Council,http://statistics.data.gov.uk/id/local-authority/32UF,HR,Other Employee Expenses,04/09/2014,IJ00032427,1077.75,Compass Point Business Srvcs (East Coast) Ltd,
South Holland District Council,http://statistics.data.gov.uk/id/local-authority/32UF,ICT and Customer Services,Furniture and Equipment,04/09/2014,IJ00032427,11.46,Compass Point Business Srvcs (East Coast) Ltd,
South Holland District Council,http://statistics.data.gov.uk/id/local-authority/32UF,ICT and Customer Services,Furniture and Equipment,04/09/2014,IJ00032427,226.30,Compass Point Business Srvcs (East Coast) Ltd,
South Holland District Council,http://statistics.data.gov.uk/id/local-authority/32UF,ICT and Customer Services,Computer Software Licence Costs,04/09/2014,IJ00032427,200.00,Compass Point Business Srvcs (East Coast) Ltd,
South Holland District Council,http://statistics.data.gov.uk/id/local-authority/32UF,Housing Landlord Manager,Computer Software Purchase,04/09/2014,IJ00032427,1871.35,Compass Point Business Srvcs (East Coast) Ltd,
South Holland District Council,http://statistics.data.gov.uk/id/local-authority/32UF,Asset and Property,Court Costs,04/09/2014,IJ00032427,220.00,Compass Point Business Srvcs (East Coast) Ltd,
South Holland District Council,http://statistics.data.gov.uk/id/local-authority/32UF,ICT and Customer Services,Computer Software Licence Costs,04/09/2014,IJ00032427,401.26,Compass Point Business Srvcs (East Coast) Ltd,
South Holland District Council,http://statistics.data.gov.uk/id/local-authority/32UF,Housing Landlord Manager,Court Costs,04/09/2014,IJ00032427,35.00,Compass Point Business Srvcs (East Coast) Ltd,
South Holland District Council,http://statistics.data.gov.uk/id/local-authority/32UF,Housing Landlord Manager,Court Costs,04/09/2014,IJ00032427,300.00,Compass Point Business Srvcs (East Coast) Ltd,
South Holland District Council,http://statistics.data.gov.uk/id/local-authority/32UF,Housing Landlord Manager,Court Costs,04/09/2014,IJ00032427,35.00,Compass Point Business Srvcs (East Coast) Ltd,
South Holland District Council,http://statistics.data.gov.uk/id/local-authority/32UF,Housing Landlord Manager,Court Costs,04/09/2014,IJ00032427,105.00,Compass Point Business Srvcs (East Coast) Ltd,
South Holland District Council,http://statistics.data.gov.uk/id/local-authority/32UF,Housing,Court Costs,04/09/2014,IJ00032427,25.00,Compass Point Business Srvcs (East Coast) Ltd,
South Holland District Council,http://statistics.data.gov.uk/id/local-authority/32UF,Housing,Court Costs,04/09/2014,IJ00032427,35.00,Compass Point Business Srvcs (East Coast) Ltd,
South Holland District Council,http://statistics.data.gov.uk/id/local-authority/32UF,Housing,Court Costs,04/09/2014,IJ00032427,60.00,Compass Point Business Srvcs (East Coast) Ltd,
South Holland District Council,http://statistics.data.gov.uk/id/local-authority/32UF,Capital,Purchase of Hardware,04/09/2014,IJ00032427,862.80,Compass Point Business Srvcs (East Coast) Ltd,
South Holland District Council,http://statistics.data.gov.uk/id/local-authority/32UF,Capital,Purchase of Hardware,04/09/2014,IJ00032427,1749.60,Compass Point Business Srvcs (East Coast) Ltd,
South Holland District Council,http://statistics.data.gov.uk/id/local-authority/32UF,Democratic Services,External Printing and Design Costs,04/09/2014,IJ00032427,2036.03,Compass Point Business Srvcs (East Coast) Ltd,
South Holland District Council,http://statistics.data.gov.uk/id/local-authority/32UF,Democratic Services,Computer Software Licence Costs,04/09/2014,IJ00032427,992.03,Compass Point Business Srvcs (East Coast) Ltd,
South Holland District Council,http://statistics.data.gov.uk/id/local-authority/32UF,Housing Landlord Manager,Court Costs,04/09/2014,IJ00032427,25.00,Compass Point Business Srvcs (East Coast) Ltd,
South Holland District Council,http://statistics.data.gov.uk/id/local-authority/32UF,Housing Landlord Manager,Court Costs,04/09/2014,IJ00032427,35.00,Compass Point Business Srvcs (East Coast) Ltd,
South Holland District Council,http://statistics.data.gov.uk/id/local-authority/32UF,Capital,Purchase of Software,04/09/2014,IJ00032427,568.50,Compass Point Business Srvcs (East Coast) Ltd,
South Holland District Council,http://statistics.data.gov.uk/id/local-authority/32UF,Finance,Compass Point Business Services,04/09/2014,IJ00032466,248630.66,Compass Point Business Srvcs (East Coast) Ltd,
South Holland District Council,http://statistics.data.gov.uk/id/local-authority/32UF,Housing,Grants and Contributions to Outside Bodies- No Service Recei,04/09/2014,IJ00032387,1340.00,Dolphin Mobility East Mids Ltd,
South Holland District Council,http://statistics.data.gov.uk/id/local-authority/32UF,Housing Landlord Manager,Heating Oil,04/09/2014,IJ00032388,502.50,GB OILS LTD T AS PACE FUELCARE,
South Holland District Council,http://statistics.data.gov.uk/id/local-authority/32UF,Housing Landlord Manager,Grounds Maintenance Recharge,04/09/2014,IJ00032492,850.00,Greenscape Tree Safe Ltd,
South Holland District Council,http://statistics.data.gov.uk/id/local-authority/32UF,Revs and Bens,Court Costs,04/09/2014,IJ00032426,1023.00,H M C S,
South Holland District Council,http://statistics.data.gov.uk/id/local-authority/32UF,Revs and Bens,Court Costs,04/09/2014,IJ00032426,12.00,H M C S,
South Holland District Council,http://statistics.data.gov.uk/id/local-authority/32UF,Environmental Services,Agency Staff,04/09/2014,IJ00032358,363.34,Integrity Plus Ltd,
South Holland District Council,http://statistics.data.gov.uk/id/local-authority/32UF,Environmental Services,Agency Staff,04/09/2014,IJ00032358,363.34,Integrity Plus Ltd,
South Holland District Council,http://statistics.data.gov.uk/id/local-authority/32UF,Housing Landlord Manager,Materials and Consumables,04/09/2014,IJ00032436,2925.61,Jackson Buildbase,
South Holland District Council,http://statistics.data.gov.uk/id/local-authority/32UF,Housing Landlord Manager,Materials and Consumables,04/09/2014,IJ00032436,2232.13,Jackson Buildbase,
South Holland District Council,http://statistics.data.gov.uk/id/local-authority/32UF,Housing Landlord Manager,Materials and Consumables,04/09/2014,IJ00032436,410.76,Jackson Buildbase,
South Holland District Council,http://statistics.data.gov.uk/id/local-authority/32UF,Finance,External Audit Fees,04/09/2014,IJ00032360,16650.50,Kpmg Tax,
South Holland District Council,http://statistics.data.gov.uk/id/local-authority/32UF,Economic Development,Grants and Contributions to Outside Bodies- No Service Recei,04/09/2014,IJ00032409,5000.00,Lincolnshire County Council,
South Holland District Council,http://statistics.data.gov.uk/id/local-authority/32UF,Building Control,Buildings Maintenance - Programmed,04/09/2014,IJ00032467,657.10,Main Street Signs Ltd,
South Holland District Council,http://statistics.data.gov.uk/id/local-authority/32UF,Housing Landlord Manager,Commercial Vehicle Lease,04/09/2014,IJ00032411,520.00,Northgate Vehicle Hire (East Midlands) Ltd,
South Holland District Council,http://statistics.data.gov.uk/id/local-authority/32UF,Environmental Services,Professional & Contractors Fees,04/09/2014,IJ00032355,3908.89,South Holland Maintenance Ltd,
South Holland District Council,http://statistics.data.gov.uk/id/local-authority/32UF,Community Development,Film and Entertainment Costs,04/09/2014,IJ00032431,551.86,Vertigo Distribution Ltd,
South Holland District Council,http://statistics.data.gov.uk/id/local-authority/32UF,Housing Landlord Manager,Void Repairs,04/09/2014,IJ00032402,1020.00,Spotless Cleaning,
South Holland District Council,http://statistics.data.gov.uk/id/local-authority/32UF,Planning,Telephones,04/09/2014,IJ00032464,5.49,DAISY COMMUNICATIONS LTD,
South Holland District Council,http://statistics.data.gov.uk/id/local-authority/32UF,Housing Landlord Manager,Telephones,04/09/2014,IJ00032464,913.87,DAISY COMMUNICATIONS LTD,
South Holland District Council,http://statistics.data.gov.uk/id/local-authority/32UF,Finance,Telephones,04/09/2014,IJ00032464,914.42,DAISY COMMUNICATIONS LTD,
South Holland District Council,http://statistics.data.gov.uk/id/local-authority/32UF,Environmental Health,Telephones,04/09/2014,IJ00032464,10.99,DAISY COMMUNICATIONS LTD,
South Holland District Council,http://statistics.data.gov.uk/id/local-authority/32UF,Asset and Property,Telephones,04/09/2014,IJ00032464,21.98,DAISY COMMUNICATIONS LTD,
South Holland District Council,http://statistics.data.gov.uk/id/local-authority/32UF,Building Control,Telephones,04/09/2014,IJ00032464,5.48,DAISY COMMUNICATIONS LTD,
South Holland District Council,http://statistics.data.gov.uk/id/local-authority/32UF,Environmental Services,Telephones,04/09/2014,IJ00032464,10.99,DAISY COMMUNICATIONS LTD,
South Holland District Council,http://statistics.data.gov.uk/id/local-authority/32UF,Housing Landlord Manager,Telephones,04/09/2014,IJ00032464,11.16,DAISY COMMUNICATIONS LTD,
South Holland District Council,http://statistics.data.gov.uk/id/local-authority/32UF,Environmental Services,Telephones,04/09/2014,IJ00032464,11.20,DAISY COMMUNICATIONS LTD,
South Holland District Council,http://statistics.data.gov.uk/id/local-authority/32UF,Environmental Services,Telephones,04/09/2014,IJ00032464,11.34,DAISY COMMUNICATIONS LTD,
South Holland District Council,http://statistics.data.gov.uk/id/local-authority/32UF,Environmental Health,Telephones,04/09/2014,IJ00032464,10.99,DAISY COMMUNICATIONS LTD,
South Holland District Council,http://statistics.data.gov.uk/id/local-authority/32UF,Housing Landlord Manager,Telephones,04/09/2014,IJ00032464,11.00,DAISY COMMUNICATIONS LTD,
South Holland District Council,http://statistics.data.gov.uk/id/local-authority/32UF,Asset and Property,Telephones,04/09/2014,IJ00032464,10.99,DAISY COMMUNICATIONS LTD,
South Holland District Council,http://statistics.data.gov.uk/id/local-authority/32UF,Housing Landlord Manager,Telephones,04/09/2014,IJ00032464,16.36,DAISY COMMUNICATIONS LTD,
South Holland District Council,http://statistics.data.gov.uk/id/local-authority/32UF,Finance,Telephones,04/09/2014,IJ00032464,176.26,DAISY COMMUNICATIONS LTD,
South Holland District Council,http://statistics.data.gov.uk/id/local-authority/32UF,Finance,Telephones,04/09/2014,IJ00032464,10.99,DAISY COMMUNICATIONS LTD,
South Holland District Council,http://statistics.data.gov.uk/id/local-authority/32UF,Community Development,Telephones,04/09/2014,IJ00032464,10.99,DAISY COMMUNICATIONS LTD,
South Holland District Council,http://statistics.data.gov.uk/id/local-authority/32UF,Community Development,Telephones,04/09/2014,IJ00032464,122.31,DAISY COMMUNICATIONS LTD,
South Holland District Council,http://statistics.data.gov.uk/id/local-authority/32UF,Community Development,Telephones,04/09/2014,IJ00032464,44.18,DAISY COMMUNICATIONS LTD,
South Holland District Council,http://statistics.data.gov.uk/id/local-authority/32UF,Community Development,Telephones,04/09/2014,IJ00032464,22.19,DAISY COMMUNICATIONS LTD,
South Holland District Council,http://statistics.data.gov.uk/id/local-authority/32UF,Communications,Telephones,04/09/2014,IJ00032464,10.99,DAISY COMMUNICATIONS LTD,
South Holland District Council,http://statistics.data.gov.uk/id/local-authority/32UF,ICT and Customer Services,Computer Hardware Purchase,04/09/2014,IJ00032425,1438.20,INFRASYS LTD,
South Holland District Council,http://statistics.data.gov.uk/id/local-authority/32UF,Finance,Postages,04/09/2014,IJ00032376,10000.00,NEOPOST LIMITED,
South Holland District Council,http://statistics.data.gov.uk/id/local-authority/32UF,Capital,Works to Buildings (main Contractor),04/09/2014,IJ00032340,2125.00,MPL HOME IMPROVEMENTS SERVICES LINCS LTD,
South Holland District Council,http://statistics.data.gov.uk/id/local-authority/32UF,Capital,Works to Buildings (main Contractor),04/09/2014,IJ00032446,3550.00,MPL HOME IMPROVEMENTS SERVICES LINCS LTD,
South Holland District Council,http://statistics.data.gov.uk/id/local-authority/32UF,Environmental Services,Materials and Consumables,04/09/2014,IJ00032322,1700.00,Tachodisc,
South Holland District Council,http://statistics.data.gov.uk/id/local-authority/32UF,Housing Landlord Manager,Buildings Maintenance - Responsive,04/09/2014,IJ00032419,690.00,Wrights Flooring and Carpets Ltd,
South Holland District Council,http://statistics.data.gov.uk/id/local-authority/32UF,Housing Landlord Manager,Buildings Maintenance - Responsive,04/09/2014,IJ00032420,530.00,Wrights Flooring and Carpets Ltd,
South Holland District Council,http://statistics.data.gov.uk/id/local-authority/32UF,Housing Landlord Manager,Void Repairs,04/09/2014,IJ00032398,3649.88,M Yould Plumbing and Heating Ltd,
South Holland District Council,http://statistics.data.gov.uk/id/local-authority/32UF,Housing Landlord Manager,Void Repairs,04/09/2014,IJ00032399,2350.72,M Yould Plumbing and Heating Ltd,
South Holland District Council,http://statistics.data.gov.uk/id/local-authority/32UF,Housing Landlord Manager,Void Repairs,04/09/2014,IJ00032400,1800.00,M Yould Plumbing and Heating Ltd,
South Holland District Council,http://statistics.data.gov.uk/id/local-authority/32UF,Capital,Works to Buildings (main Contractor),04/09/2014,IJ00032452,2490.00,M Yould Plumbing and Heating Ltd,
South Holland District Council,http://statistics.data.gov.uk/id/local-authority/32UF,Capital,Works to Buildings (main Contractor),04/09/2014,IJ00032453,64320.00,M Yould Plumbing and Heating Ltd,
South Holland District Council,http://statistics.data.gov.uk/id/local-authority/32UF,Capital,Works to Buildings (main Contractor),04/09/2014,IJ00032487,2791.80,Sustainable Energy Connection  Ltd,
South Holland District Council,http://statistics.data.gov.uk/id/local-authority/32UF,Capital,Works to Buildings (main Contractor),04/09/2014,IJ00032454,7641.00,MCP Environmental,
South Holland District Council,http://statistics.data.gov.uk/id/local-authority/32UF,Capital,Works to Buildings (main Contractor),04/09/2014,IJ00032455,6135.00,MCP Environmental,
South Holland District Council,http://statistics.data.gov.uk/id/local-authority/32UF,Planning,Professional & Contractors Fees,04/09/2014,IJ00032336,990.00,MatchTech Group Plc,
South Holland District Council,http://statistics.data.gov.uk/id/local-authority/32UF,Planning,Professional & Contractors Fees,04/09/2014,IJ00032337,750.00,MatchTech Group Plc,
South Holland District Council,http://statistics.data.gov.uk/id/local-authority/32UF,Environmental Services,Maintenance,04/09/2014,IJ00032323,820.00,Kier FPS Limited,
South Holland District Council,http://statistics.data.gov.uk/id/local-authority/32UF,ICT and Customer Services,Computer Software Licence Costs,04/09/2014,IJ00032375,5126.73,Cognitive Network Solutions Ltd,
South Holland District Council,http://statistics.data.gov.uk/id/local-authority/32UF,Housing,Grants and Contributions to Outside Bodies- No Service Recei,04/09/2014,IJ00032366,3120.00,J Bond Home Improvement and Maintenance Services,
South Holland District Council,http://statistics.data.gov.uk/id/local-authority/32UF,Environmental Services,Agency Staff,11/09/2014,IJ00032511,211.50,247 Personnel Ltd,
South Holland District Council,http://statistics.data.gov.uk/id/local-authority/32UF,Environmental Services,Agency Staff,11/09/2014,IJ00032511,472.50,247 Personnel Ltd,
South Holland District Council,http://statistics.data.gov.uk/id/local-authority/32UF,Environmental Services,Agency Staff,11/09/2014,IJ00032511,67.50,247 Personnel Ltd,
South Holland District Council,http://statistics.data.gov.uk/id/local-authority/32UF,Environmental Services,Agency Staff,11/09/2014,IJ00032511,405.00,247 Personnel Ltd,
South Holland District Council,http://statistics.data.gov.uk/id/local-authority/32UF,Environmental Services,Agency Staff,11/09/2014,IJ00032627,198.00,247 Personnel Ltd,
South Holland District Council,http://statistics.data.gov.uk/id/local-authority/32UF,Environmental Services,Agency Staff,11/09/2014,IJ00032627,679.50,247 Personnel Ltd,
South Holland District Council,http://statistics.data.gov.uk/id/local-authority/32UF,Environmental Services,Agency Staff,11/09/2014,IJ00032627,193.50,247 Personnel Ltd,
South Holland District Council,http://statistics.data.gov.uk/id/local-authority/32UF,Environmental Services,Agency Staff,11/09/2014,IJ00032627,274.50,247 Personnel Ltd,
South Holland District Council,http://statistics.data.gov.uk/id/local-authority/32UF,Community Development,Payments to Bodies in Respect of Income Collected,11/09/2014,IJ00032501,1102.00,50 plus Sports and Social Club,
South Holland District Council,http://statistics.data.gov.uk/id/local-authority/32UF,Housing Landlord Manager,Cesspool Empying,11/09/2014,IJ00032642,868.00,Bates Environmental Ltd,
South Holland District Council,http://statistics.data.gov.uk/id/local-authority/32UF,Housing Landlord Manager,Drain Repairs,11/09/2014,IJ00032642,2500.00,Bates Environmental Ltd,
South Holland District Council,http://statistics.data.gov.uk/id/local-authority/32UF,Environmental Services,Agency Staff,11/09/2014,IJ00032592,228.37,Blue Arrow Ltd,
South Holland District Council,http://statistics.data.gov.uk/id/local-authority/32UF,Environmental Services,Agency Staff,11/09/2014,IJ00032592,1959.98,Blue Arrow Ltd,
South Holland District Council,http://statistics.data.gov.uk/id/local-authority/32UF,Environmental Services,Agency Staff,11/09/2014,IJ00032592,1438.46,Blue Arrow Ltd,
South Holland District Council,http://statistics.data.gov.uk/id/local-authority/32UF,Environmental Services,Agency Staff,11/09/2014,IJ00032592,329.88,Blue Arrow Ltd,
South Holland District Council,http://statistics.data.gov.uk/id/local-authority/32UF,Economic Development,Professional & Contractors Fees,11/09/2014,IJ00032504,1819.65,Breckland Council,
South Holland District Council,http://statistics.data.gov.uk/id/local-authority/32UF,Chief Executive,Shared Management,11/09/2014,IJ00032600,51763.18,Breckland Council,
South Holland District Council,http://statistics.data.gov.uk/id/local-authority/32UF,Housing,Shared Management,11/09/2014,IJ00032620,3603.37,Breckland Council,
South Holland District Council,http://statistics.data.gov.uk/id/local-authority/32UF,HR,Staff Training Expenses,11/09/2014,IJ00032654,360.00,Breckland Council,
South Holland District Council,http://statistics.data.gov.uk/id/local-authority/32UF,HR,Staff Training Expenses,11/09/2014,IJ00032654,569.00,Breckland Council,
South Holland District Council,http://statistics.data.gov.uk/id/local-authority/32UF,Environmental Health,Course Fees,11/09/2014,IJ00032654,161.00,Breckland Council,
South Holland District Council,http://statistics.data.gov.uk/id/local-authority/32UF,Chief Executive,Shared Management,11/09/2014,IJ00032654,585.00,Breckland Council,
South Holland District Council,http://statistics.data.gov.uk/id/local-authority/32UF,Building Control,Buildings Maintenance - Programmed,11/09/2014,IJ00032594,1495.00,Brooks (Spalding) Ltd,
South Holland District Council,http://statistics.data.gov.uk/id/local-authority/32UF,Building Control,Buildings Maintenance - Programmed,11/09/2014,IJ00032595,975.00,Brooks (Spalding) Ltd,
South Holland District Council,http://statistics.data.gov.uk/id/local-authority/32UF,Building Control,Buildings Maintenance - Responsive,11/09/2014,IJ00032601,1449.68,Brooks (Spalding) Ltd,
South Holland District Council,http://statistics.data.gov.uk/id/local-authority/32UF,Finance,Premises Insurance,11/09/2014,IJ00032645,5385.08,Bureau Veritas Uk Ltd,
South Holland District Council,http://statistics.data.gov.uk/id/local-authority/32UF,Finance,Professional & Contractors Fees,11/09/2014,IJ00032646,1133.06,Capita Business Services Ltd,
South Holland District Council,http://statistics.data.gov.uk/id/local-authority/32UF,Housing Landlord Manager,Sewerage Treatment Works,11/09/2014,IJ00032557,20010.18,C.G. Godfrey Ltd,
South Holland District Council,http://statistics.data.gov.uk/id/local-authority/32UF,Housing Landlord Manager,Sewerage Treatment Works,11/09/2014,IJ00032559,804.60,C.G. Godfrey Ltd,
South Holland District Council,http://statistics.data.gov.uk/id/local-authority/32UF,Housing Landlord Manager,Fuel & Oil,11/09/2014,IJ00032513,408.98,C H Jones Ltd,
South Holland District Council,http://statistics.data.gov.uk/id/local-authority/32UF,Environmental Services,Fuel & Oil,11/09/2014,IJ00032513,383.63,C H Jones Ltd,
South Holland District Council,http://statistics.data.gov.uk/id/local-authority/32UF,Environmental Services,Fuel & Oil,11/09/2014,IJ00032513,1829.03,C H Jones Ltd,
South Holland District Council,http://statistics.data.gov.uk/id/local-authority/32UF,Environmental Services,Fuel & Oil,11/09/2014,IJ00032513,315.81,C H Jones Ltd,
South Holland District Council,http://statistics.data.gov.uk/id/local-authority/32UF,Environmental Services,Fuel & Oil,11/09/2014,IJ00032513,2397.84,C H Jones Ltd,
South Holland District Council,http://statistics.data.gov.uk/id/local-authority/32UF,Housing Landlord Manager,Fuel & Oil,11/09/2014,IJ00032513,152.67,C H Jones Ltd,
South Holland District Council,http://statistics.data.gov.uk/id/local-authority/32UF,Housing Landlord Manager,Fuel & Oil,11/09/2014,IJ00032513,64.97,C H Jones Ltd,
South Holland District Council,http://statistics.data.gov.uk/id/local-authority/32UF,Environmental Services,Fuel & Oil,11/09/2014,IJ00032513,24.82,C H Jones Ltd,
South Holland District Council,http://statistics.data.gov.uk/id/local-authority/32UF,Environmental Services,Fuel & Oil,11/09/2014,IJ00032513,4.41,C H Jones Ltd,
South Holland District Council,http://statistics.data.gov.uk/id/local-authority/32UF,Environmental Health,Fuel & Oil,11/09/2014,IJ00032513,47.00,C H Jones Ltd,
South Holland District Council,http://statistics.data.gov.uk/id/local-authority/32UF,Environmental Services,Maintenance,11/09/2014,IJ00032510,569.96,C P Davidson & Sons Ltd,
South Holland District Council,http://statistics.data.gov.uk/id/local-authority/32UF,Environmental Services,Maintenance,11/09/2014,IJ00032510,4786.59,C P Davidson & Sons Ltd,
South Holland District Council,http://statistics.data.gov.uk/id/local-authority/32UF,Environmental Services,Maintenance,11/09/2014,IJ00032510,3220.62,C P Davidson & Sons Ltd,
South Holland District Council,http://statistics.data.gov.uk/id/local-authority/32UF,Environmental Services,Maintenance,11/09/2014,IJ00032510,736.15,C P Davidson & Sons Ltd,
South Holland District Council,http://statistics.data.gov.uk/id/local-authority/32UF,Environmental Services,Commercial Vehicle Lease,11/09/2014,IJ00032647,4459.47,C P Davidson & Sons Ltd,
South Holland District Council,http://statistics.data.gov.uk/id/local-authority/32UF,Housing,Grants and Contributions to Outside Bodies- No Service Recei,11/09/2014,IJ00032644,15053.14,D Brown (Building Contractors) Ltd,
South Holland District Council,http://statistics.data.gov.uk/id/local-authority/32UF,Capital,Works to Buildings (main Contractor),11/09/2014,IJ00032637,93537.00,Foster Property Maintenance Ltd,
South Holland District Council,http://statistics.data.gov.uk/id/local-authority/32UF,Environmental Services,Grounds Maintenance Contract (External),11/09/2014,IJ00032603,595.00,Greenscape Tree Safe Ltd,
South Holland District Council,http://statistics.data.gov.uk/id/local-authority/32UF,Housing Landlord Manager,Void Decoration,11/09/2014,IJ00032569,670.82,Homebase Limited,
South Holland District Council,http://statistics.data.gov.uk/id/local-authority/32UF,Housing Landlord Manager,Void Decoration,11/09/2014,IJ00032585,583.34,Homebase Limited,
South Holland District Council,http://statistics.data.gov.uk/id/local-authority/32UF,Environmental Services,Agency Staff,11/09/2014,IJ00032591,599.03,Integrity Plus Ltd,
South Holland District Council,http://statistics.data.gov.uk/id/local-authority/32UF,Environmental Services,Agency Staff,11/09/2014,IJ00032591,284.77,Integrity Plus Ltd,
South Holland District Council,http://statistics.data.gov.uk/id/local-authority/32UF,Housing Landlord Manager,Materials and Consumables,11/09/2014,IJ00032572,1312.96,Jackson Buildbase,
South Holland District Council,http://statistics.data.gov.uk/id/local-authority/32UF,Housing Landlord Manager,Materials and Consumables,11/09/2014,IJ00032572,3908.96,Jackson Buildbase,
South Holland District Council,http://statistics.data.gov.uk/id/local-authority/32UF,Housing Landlord Manager,Materials and Consumables,11/09/2014,IJ00032572,212.67,Jackson Buildbase,
South Holland District Council,http://statistics.data.gov.uk/id/local-authority/32UF,Housing Landlord Manager,Agency Staff,11/09/2014,IJ00032562,751.29,James Andrews Recruitment Solutions,
South Holland District Council,http://statistics.data.gov.uk/id/local-authority/32UF,Community Development,Leisure Management,11/09/2014,IJ00032506,528.37,Leisure Connection Ltd,
South Holland District Council,http://statistics.data.gov.uk/id/local-authority/32UF,Community Development,Leisure Management,11/09/2014,IJ00032506,528.37,Leisure Connection Ltd,
South Holland District Council,http://statistics.data.gov.uk/id/local-authority/32UF,Community Development,Leisure Management,11/09/2014,IJ00032507,5458.54,Leisure Connection Ltd,
South Holland District Council,http://statistics.data.gov.uk/id/local-authority/32UF,Community Development,Leisure Management,11/09/2014,IJ00032507,5458.54,Leisure Connection Ltd,
South Holland District Council,http://statistics.data.gov.uk/id/local-authority/32UF,Housing Landlord Manager,Buildings Maintenance - Responsive,11/09/2014,IJ00032529,1116.00,L Fragale,
South Holland District Council,http://statistics.data.gov.uk/id/local-authority/32UF,Housing Landlord Manager,Buildings Maintenance - Responsive,11/09/2014,IJ00032538,1116.67,L Fragale,
South Holland District Council,http://statistics.data.gov.uk/id/local-authority/32UF,Housing Landlord Manager,Buildings Maintenance - Responsive,11/09/2014,IJ00032540,642.58,L Fragale,
South Holland District Council,http://statistics.data.gov.uk/id/local-authority/32UF,Planning,Professional & Contractors Fees,11/09/2014,IJ00032560,3854.00,Lincolnshire County Council,
South Holland District Council,http://statistics.data.gov.uk/id/local-authority/32UF,Planning,Professional & Contractors Fees,11/09/2014,IJ00032622,25400.00,Lincolnshire County Council,
South Holland District Council,http://statistics.data.gov.uk/id/local-authority/32UF,Democratic Services,Postages,11/09/2014,IJ00032611,617.55,Lincolnshire County Council,
South Holland District Council,http://statistics.data.gov.uk/id/local-authority/32UF,Democratic Services,Postages,11/09/2014,IJ00032611,11155.34,Lincolnshire County Council,
South Holland District Council,http://statistics.data.gov.uk/id/local-authority/32UF,Building Control,Buildings Maintenance - Programmed,11/09/2014,IJ00032593,797.00,Main Street Signs Ltd,
South Holland District Council,http://statistics.data.gov.uk/id/local-authority/32UF,Housing Landlord Manager,Buildings Maintenance - Responsive,11/09/2014,IJ00032544,667.40,M & R Glass & Glazing Ltd,
South Holland District Council,http://statistics.data.gov.uk/id/local-authority/32UF,Housing Landlord Manager,Materials and Consumables,11/09/2014,IJ00032544,9.00,M & R Glass & Glazing Ltd,
South Holland District Council,http://statistics.data.gov.uk/id/local-authority/32UF,Housing Landlord Manager,Buildings Maintenance - Responsive,11/09/2014,IJ00032528,3841.20,M & R Glass & Glazing Ltd,
South Holland District Council,http://statistics.data.gov.uk/id/local-authority/32UF,Housing Landlord Manager,Professional & Contractors Fees,11/09/2014,IJ00032629,900.00,Northgate Information Solutions Uk Ltd,
South Holland District Council,http://statistics.data.gov.uk/id/local-authority/32UF,Housing,Grants and Contributions to Outside Bodies- No Service Recei,11/09/2014,IJ00032616,1305.00,Obam Lift Services Ltd,
South Holland District Council,http://statistics.data.gov.uk/id/local-authority/32UF,Environmental Services,Professional & Contractors Fees,11/09/2014,IJ00032609,1256.81,Ocs Group Uk Limited TA Cannon,
South Holland District Council,http://statistics.data.gov.uk/id/local-authority/32UF,Housing Landlord Manager,Materials and Consumables,11/09/2014,IJ00032519,546.25,Rexel Uk Ltd,
South Holland District Council,http://statistics.data.gov.uk/id/local-authority/32UF,Housing Landlord Manager,Materials and Consumables,11/09/2014,IJ00032526,536.24,Rexel Uk Ltd,
South Holland District Council,http://statistics.data.gov.uk/id/local-authority/32UF,Community Development,Grants and Contributions to Outside Bodies- No Service Recei,11/09/2014,IJ00032623,3000.00,Soundlincs,
South Holland District Council,http://statistics.data.gov.uk/id/local-authority/32UF,Asset and Property,Electricity,11/09/2014,IJ00032660,4094.85,Southern Electric,
South Holland District Council,http://statistics.data.gov.uk/id/local-authority/32UF,Environmental Services,Agency Staff,11/09/2014,IJ00032556,89.55,The Best Connection Group Ltd,
South Holland District Council,http://statistics.data.gov.uk/id/local-authority/32UF,Environmental Services,Agency Staff,11/09/2014,IJ00032556,334.32,The Best Connection Group Ltd,
South Holland District Council,http://statistics.data.gov.uk/id/local-authority/32UF,Environmental Services,Agency Staff,11/09/2014,IJ00032556,185.07,The Best Connection Group Ltd,
South Holland District Council,http://statistics.data.gov.uk/id/local-authority/32UF,Environmental Services,Agency Staff,11/09/2014,IJ00032508,346.26,The Best Connection Group Ltd,
South Holland District Council,http://statistics.data.gov.uk/id/local-authority/32UF,Environmental Services,Agency Staff,11/09/2014,IJ00032508,610.21,The Best Connection Group Ltd,
South Holland District Council,http://statistics.data.gov.uk/id/local-authority/32UF,Community Development,Film and Entertainment Costs,11/09/2014,IJ00032500,920.84,Twentieth Century Fox Film Co Ltd,
South Holland District Council,http://statistics.data.gov.uk/id/local-authority/32UF,Planning,Telephones,11/09/2014,IJ00032672,70.83,Vodafone Ltd,
South Holland District Council,http://statistics.data.gov.uk/id/local-authority/32UF,Building Control,Telephones,11/09/2014,IJ00032672,8.53,Vodafone Ltd,
South Holland District Council,http://statistics.data.gov.uk/id/local-authority/32UF,Finance,Telephones,11/09/2014,IJ00032672,57.39,Vodafone Ltd,
South Holland District Council,http://statistics.data.gov.uk/id/local-authority/32UF,Democratic Services,Telephones,11/09/2014,IJ00032672,8.50,Vodafone Ltd,
South Holland District Council,http://statistics.data.gov.uk/id/local-authority/32UF,Democratic Services,Telephones,11/09/2014,IJ00032672,115.78,Vodafone Ltd,
South Holland District Council,http://statistics.data.gov.uk/id/local-authority/32UF,Asset and Property,Telephones,11/09/2014,IJ00032672,159.74,Vodafone Ltd,
South Holland District Council,http://statistics.data.gov.uk/id/local-authority/32UF,ICT and Customer Services,Telephones,11/09/2014,IJ00032672,143.43,Vodafone Ltd,
South Holland District Council,http://statistics.data.gov.uk/id/local-authority/32UF,Revs and Bens,Telephones,11/09/2014,IJ00032672,8.43,Vodafone Ltd,
South Holland District Council,http://statistics.data.gov.uk/id/local-authority/32UF,Revs and Bens,Telephones,11/09/2014,IJ00032672,17.03,Vodafone Ltd,
South Holland District Council,http://statistics.data.gov.uk/id/local-authority/32UF,Revs and Bens,Telephones,11/09/2014,IJ00032672,8.43,Vodafone Ltd,
South Holland District Council,http://statistics.data.gov.uk/id/local-authority/32UF,Planning,Telephones,11/09/2014,IJ00032672,33.72,Vodafone Ltd,
South Holland District Council,http://statistics.data.gov.uk/id/local-authority/32UF,Planning,Telephones,11/09/2014,IJ00032672,8.43,Vodafone Ltd,
South Holland District Council,http://statistics.data.gov.uk/id/local-authority/32UF,Planning,Telephones,11/09/2014,IJ00032672,8.43,Vodafone Ltd,
South Holland District Council,http://statistics.data.gov.uk/id/local-authority/32UF,Planning,Telephones,11/09/2014,IJ00032672,32.67,Vodafone Ltd,
South Holland District Council,http://statistics.data.gov.uk/id/local-authority/32UF,Building Control,Telephones,11/09/2014,IJ00032672,252.80,Vodafone Ltd,
South Holland District Council,http://statistics.data.gov.uk/id/local-authority/32UF,Environmental Services,Telephones,11/09/2014,IJ00032672,323.66,Vodafone Ltd,
South Holland District Council,http://statistics.data.gov.uk/id/local-authority/32UF,Environmental Services,Telephones,11/09/2014,IJ00032672,24.13,Vodafone Ltd,
South Holland District Council,http://statistics.data.gov.uk/id/local-authority/32UF,Community Development,Telephones,11/09/2014,IJ00032672,23.43,Vodafone Ltd,
South Holland District Council,http://statistics.data.gov.uk/id/local-authority/32UF,Community Development,Telephones,11/09/2014,IJ00032672,16.86,Vodafone Ltd,
South Holland District Council,http://statistics.data.gov.uk/id/local-authority/32UF,Community Development,Telephones,11/09/2014,IJ00032672,48.11,Vodafone Ltd,
South Holland District Council,http://statistics.data.gov.uk/id/local-authority/32UF,Environmental Services,Telephones,11/09/2014,IJ00032672,24.47,Vodafone Ltd,
South Holland District Council,http://statistics.data.gov.uk/id/local-authority/32UF,Environmental Services,Telephones,11/09/2014,IJ00032672,150.59,Vodafone Ltd,
South Holland District Council,http://statistics.data.gov.uk/id/local-authority/32UF,Housing Landlord Manager,Telephones,11/09/2014,IJ00032672,521.74,Vodafone Ltd,
South Holland District Council,http://statistics.data.gov.uk/id/local-authority/32UF,Housing Landlord Manager,Telephones,11/09/2014,IJ00032672,-20.37,Vodafone Ltd,
South Holland District Council,http://statistics.data.gov.uk/id/local-authority/32UF,Housing,Telephones,11/09/2014,IJ00032672,56.02,Vodafone Ltd,
South Holland District Council,http://statistics.data.gov.uk/id/local-authority/32UF,Housing,Telephones,11/09/2014,IJ00032672,-40.73,Vodafone Ltd,
South Holland District Council,http://statistics.data.gov.uk/id/local-authority/32UF,Housing,Telephones,11/09/2014,IJ00032672,142.53,Vodafone Ltd,
South Holland District Council,http://statistics.data.gov.uk/id/local-authority/32UF,Housing,Telephones,11/09/2014,IJ00032672,44.77,Vodafone Ltd,
South Holland District Council,http://statistics.data.gov.uk/id/local-authority/32UF,Housing Landlord Manager,Telephones,11/09/2014,IJ00032672,580.23,Vodafone Ltd,
South Holland District Council,http://statistics.data.gov.uk/id/local-authority/32UF,Housing Landlord Manager,Telephones,11/09/2014,IJ00032672,329.93,Vodafone Ltd,
South Holland District Council,http://statistics.data.gov.uk/id/local-authority/32UF,Environmental Services,Telephones,11/09/2014,IJ00032672,98.51,Vodafone Ltd,
South Holland District Council,http://statistics.data.gov.uk/id/local-authority/32UF,Environmental Services,Telephones,11/09/2014,IJ00032672,280.48,Vodafone Ltd,
South Holland District Council,http://statistics.data.gov.uk/id/local-authority/32UF,Environmental Services,Telephones,11/09/2014,IJ00032672,175.73,Vodafone Ltd,
South Holland District Council,http://statistics.data.gov.uk/id/local-authority/32UF,Environmental Services,Telephones,11/09/2014,IJ00032672,25.29,Vodafone Ltd,
South Holland District Council,http://statistics.data.gov.uk/id/local-authority/32UF,Environmental Health,Telephones,11/09/2014,IJ00032672,168.16,Vodafone Ltd,
South Holland District Council,http://statistics.data.gov.uk/id/local-authority/32UF,Environmental Health,Telephones,11/09/2014,IJ00032672,140.20,Vodafone Ltd,
South Holland District Council,http://statistics.data.gov.uk/id/local-authority/32UF,Environmental Health,Telephones,11/09/2014,IJ00032672,105.65,Vodafone Ltd,
South Holland District Council,http://statistics.data.gov.uk/id/local-authority/32UF,Environmental Health,Telephones,11/09/2014,IJ00032672,38.55,Vodafone Ltd,
South Holland District Council,http://statistics.data.gov.uk/id/local-authority/32UF,Community Development,Telephones,11/09/2014,IJ00032672,52.12,Vodafone Ltd,
South Holland District Council,http://statistics.data.gov.uk/id/local-authority/32UF,Community Development,Telephones,11/09/2014,IJ00032672,50.61,Vodafone Ltd,
South Holland District Council,http://statistics.data.gov.uk/id/local-authority/32UF,Community Development,Telephones,11/09/2014,IJ00032672,125.31,Vodafone Ltd,
South Holland District Council,http://statistics.data.gov.uk/id/local-authority/32UF,Economic Development,Telephones,11/09/2014,IJ00032672,109.66,Vodafone Ltd,
South Holland District Council,http://statistics.data.gov.uk/id/local-authority/32UF,Economic Development,Telephones,11/09/2014,IJ00032672,8.43,Vodafone Ltd,
South Holland District Council,http://statistics.data.gov.uk/id/local-authority/32UF,Economic Development,Telephones,11/09/2014,IJ00032672,8.43,Vodafone Ltd,
South Holland District Council,http://statistics.data.gov.uk/id/local-authority/32UF,Housing Landlord Manager,Telephones,11/09/2014,IJ00032672,353.05,Vodafone Ltd,
South Holland District Council,http://statistics.data.gov.uk/id/local-authority/32UF,Housing Landlord Manager,Telephones,11/09/2014,IJ00032672,76.87,Vodafone Ltd,
South Holland District Council,http://statistics.data.gov.uk/id/local-authority/32UF,Finance,Telephones,11/09/2014,IJ00032672,8.43,Vodafone Ltd,
South Holland District Council,http://statistics.data.gov.uk/id/local-authority/32UF,Environmental Health,Telephones,11/09/2014,IJ00032672,61.35,Vodafone Ltd,
South Holland District Council,http://statistics.data.gov.uk/id/local-authority/32UF,Housing Landlord Manager,Telephones,11/09/2014,IJ00032672,723.66,Vodafone Ltd,
South Holland District Council,http://statistics.data.gov.uk/id/local-authority/32UF,Housing Landlord Manager,Telephones,11/09/2014,IJ00032672,2670.12,Vodafone Ltd,
South Holland District Council,http://statistics.data.gov.uk/id/local-authority/32UF,Finance,Telephones,11/09/2014,IJ00032672,-8.47,Vodafone Ltd,
South Holland District Council,http://statistics.data.gov.uk/id/local-authority/32UF,Finance,Telephones,11/09/2014,IJ00032672,51.08,Vodafone Ltd,
South Holland District Council,http://statistics.data.gov.uk/id/local-authority/32UF,Community Development,Telephones,11/09/2014,IJ00032672,100.52,Vodafone Ltd,
South Holland District Council,http://statistics.data.gov.uk/id/local-authority/32UF,Community Development,Telephones,11/09/2014,IJ00032672,35.12,Vodafone Ltd,
South Holland District Council,http://statistics.data.gov.uk/id/local-authority/32UF,Community Development,Telephones,11/09/2014,IJ00032672,53.31,Vodafone Ltd,
South Holland District Council,http://statistics.data.gov.uk/id/local-authority/32UF,Economic Development,Telephones,11/09/2014,IJ00032672,60.24,Vodafone Ltd,
South Holland District Council,http://statistics.data.gov.uk/id/local-authority/32UF,Housing Landlord Manager,Telephones,11/09/2014,IJ00032672,49.69,Vodafone Ltd,
South Holland District Council,http://statistics.data.gov.uk/id/local-authority/32UF,Environmental Services,Telephones,11/09/2014,IJ00032672,54.40,Vodafone Ltd,
South Holland District Council,http://statistics.data.gov.uk/id/local-authority/32UF,Housing Landlord Manager,Telephones,11/09/2014,IJ00032672,1159.35,Vodafone Ltd,
South Holland District Council,http://statistics.data.gov.uk/id/local-authority/32UF,Communications,Telephones,11/09/2014,IJ00032672,8.43,Vodafone Ltd,
South Holland District Council,http://statistics.data.gov.uk/id/local-authority/32UF,Democratic Services,Other Miscellaneous Expenses,11/09/2014,IJ00032664,1000.00,PCC PINCHBECK,
South Holland District Council,http://statistics.data.gov.uk/id/local-authority/32UF,Environmental Services,Other Communication Costs,11/09/2014,IJ00032628,1085.71,F Tempest & Sons Stickney Ltd,
South Holland District Council,http://statistics.data.gov.uk/id/local-authority/32UF,Democratic Services,Stationery,11/09/2014,IJ00032612,1089.90,ELECTORAL REFORM SERVICES,
South Holland District Council,http://statistics.data.gov.uk/id/local-authority/32UF,Housing Landlord Manager,Furniture and Equipment,11/09/2014,IJ00032555,1208.83,Hilti GB Ltd,
South Holland District Council,http://statistics.data.gov.uk/id/local-authority/32UF,Housing Landlord Manager,Furniture and Equipment,11/09/2014,IJ00032555,722.57,Hilti GB Ltd,
South Holland District Council,http://statistics.data.gov.uk/id/local-authority/32UF,Housing Landlord Manager,Materials and Consumables,11/09/2014,IJ00032530,529.21,Building and Plastic Supplies Ltd,
South Holland District Council,http://statistics.data.gov.uk/id/local-authority/32UF,Capital,Works to Buildings (main Contractor),11/09/2014,IJ00032638,5325.00,MCP Environmental,
South Holland District Council,http://statistics.data.gov.uk/id/local-authority/32UF,Capital,Works to Buildings (main Contractor),11/09/2014,IJ00032570,125580.00,Willmott Dixon Partnerships Ltd,
South Holland District Council,http://statistics.data.gov.uk/id/local-authority/32UF,Housing Landlord Manager,Professional & Contractors Fees,11/09/2014,IJ00032571,7230.00,DMW Environmental Safety Ltd,
South Holland District Council,http://statistics.data.gov.uk/id/local-authority/32UF,Housing Landlord Manager,Professional & Contractors Fees,11/09/2014,IJ00032667,14380.00,DMW Environmental Safety Ltd,
South Holland District Council,http://statistics.data.gov.uk/id/local-authority/32UF,Housing Landlord Manager,Gas Renewals,11/09/2014,IJ00032641,9873.00,Aaron Services Ltd,
South Holland District Council,http://statistics.data.gov.uk/id/local-authority/32UF,Housing Landlord Manager,Gas Servicing,11/09/2014,IJ00032643,15884.17,Aaron Services Ltd,
South Holland District Council,http://statistics.data.gov.uk/id/local-authority/32UF,Economic Development,Professional & Contractors Fees,11/09/2014,IJ00032505,587.50,Lava Marketing Communications Limited,
South Holland District Council,http://statistics.data.gov.uk/id/local-authority/32UF,Economic Development,Grants and Contributions to Outside Bodies- No Service Recei,11/09/2014,IJ00032631,2800.00,Rainvalley Limited t a Doors Windows Stairs and More,
South Holland District Council,http://statistics.data.gov.uk/id/local-authority/32UF,Economic Development,Grants and Contributions to Outside Bodies- No Service Recei,11/09/2014,IJ00032632,7000.00,Chapel Baits Ltd,
South Holland District Council,http://statistics.data.gov.uk/id/local-authority/32UF,Economic Development,Grants and Contributions to Outside Bodies- No Service Recei,11/09/2014,IJ00032634,3870.00,Harvest Pet Products Ltd,
South Holland District Council,http://statistics.data.gov.uk/id/local-authority/32UF,Environmental Services,Maintenance,11/09/2014,IJ00032497,2560.00,Kier FPS Limited,
South Holland District Council,http://statistics.data.gov.uk/id/local-authority/32UF,Economic Development,Grants and Contributions to Outside Bodies- No Service Recei,11/09/2014,IJ00032633,12000.00,Lincs Firewood Company Ltd,
South Holland District Council,http://statistics.data.gov.uk/id/local-authority/32UF,Collection Fund,Precept- Lincolnshire County Council,17/09/2014,IJ00032750,2750115.00,Lincolnshire County Council,
South Holland District Council,http://statistics.data.gov.uk/id/local-authority/32UF,Collection Fund,Share of NDR Income - Lincolnshire,17/09/2014,IJ00032750,249590.00,Lincolnshire County Council,
South Holland District Council,http://statistics.data.gov.uk/id/local-authority/32UF,Collection Fund,Precept - Lincolnshire Police,17/09/2014,IJ00032747,500188.39,LOCAL POLICE AUTHORITY FUND ACCOUNT,
South Holland District Council,http://statistics.data.gov.uk/id/local-authority/32UF,Community Development,Premises and Room Hire,18/09/2014,IJ00032725,-124.96,Act II,
South Holland District Council,http://statistics.data.gov.uk/id/local-authority/32UF,Community Development,Other Hire Fees,18/09/2014,IJ00032725,-110.00,Act II,
South Holland District Council,http://statistics.data.gov.uk/id/local-authority/32UF,Community Development,Payments to Bodies in Respect of Income Collected,18/09/2014,IJ00032725,1499.50,Act II,
South Holland District Council,http://statistics.data.gov.uk/id/local-authority/32UF,Community Development,Commission,18/09/2014,IJ00032725,-293.32,Act II,
South Holland District Council,http://statistics.data.gov.uk/id/local-authority/32UF,Environmental Services,Professional & Contractors Fees,18/09/2014,IJ00032772,1800.00,A Riddel Skip Hire & Scrap Metal Merchants,
South Holland District Council,http://statistics.data.gov.uk/id/local-authority/32UF,Housing Landlord Manager,Buildings Maintenance - Responsive,18/09/2014,IJ00032857,1505.00,Barry Disdel,
South Holland District Council,http://statistics.data.gov.uk/id/local-authority/32UF,Environmental Services,Agency Staff,18/09/2014,IJ00032802,216.28,Blue Arrow Ltd,
South Holland District Council,http://statistics.data.gov.uk/id/local-authority/32UF,Environmental Services,Agency Staff,18/09/2014,IJ00032802,984.55,Blue Arrow Ltd,
South Holland District Council,http://statistics.data.gov.uk/id/local-authority/32UF,Environmental Services,Agency Staff,18/09/2014,IJ00032802,1049.13,Blue Arrow Ltd,
South Holland District Council,http://statistics.data.gov.uk/id/local-authority/32UF,Environmental Services,Agency Staff,18/09/2014,IJ00032802,1798.31,Blue Arrow Ltd,
South Holland District Council,http://statistics.data.gov.uk/id/local-authority/32UF,Housing,Other Miscellaneous Expenses,18/09/2014,IJ00032852,7778.64,Broadgate Homes Limited,
South Holland District Council,http://statistics.data.gov.uk/id/local-authority/32UF,Housing,Other Miscellaneous Expenses,18/09/2014,IJ00032853,11778.72,Broadgate Homes Limited,
South Holland District Council,http://statistics.data.gov.uk/id/local-authority/32UF,Housing,Other Miscellaneous Expenses,18/09/2014,IJ00032854,7046.52,Broadgate Homes Limited,
South Holland District Council,http://statistics.data.gov.uk/id/local-authority/32UF,Building Control,Buildings Maintenance - Programmed,18/09/2014,IJ00032749,845.00,Brooks (Spalding) Ltd,
South Holland District Council,http://statistics.data.gov.uk/id/local-authority/32UF,Building Control,Buildings Maintenance - Programmed,18/09/2014,IJ00032751,1105.00,Brooks (Spalding) Ltd,
South Holland District Council,http://statistics.data.gov.uk/id/local-authority/32UF,Environmental Services,Fuel & Oil,18/09/2014,IJ00032687,1339.00,Chandlers Oil And Gas,
South Holland District Council,http://statistics.data.gov.uk/id/local-authority/32UF,Housing Landlord Manager,Buildings Maintenance - Responsive,18/09/2014,IJ00032688,720.00,Elston Environmental Services,
South Holland District Council,http://statistics.data.gov.uk/id/local-authority/32UF,Community Development,Other Communication Costs,18/09/2014,IJ00032736,700.14,G T S Security,
South Holland District Council,http://statistics.data.gov.uk/id/local-authority/32UF,Community Development,Other Communication Costs,18/09/2014,IJ00032737,1881.00,G T S Security,
South Holland District Council,http://statistics.data.gov.uk/id/local-authority/32UF,Environmental Services,Agency Staff,18/09/2014,IJ00032722,363.34,Integrity Plus Ltd,
South Holland District Council,http://statistics.data.gov.uk/id/local-authority/32UF,Environmental Services,Agency Staff,18/09/2014,IJ00032722,363.34,Integrity Plus Ltd,
South Holland District Council,http://statistics.data.gov.uk/id/local-authority/32UF,Revs and Bens,VAT Customs and Excise,18/09/2014,IJ00032702,642.59,Jacobs Certificated Bailiffs,
South Holland District Council,http://statistics.data.gov.uk/id/local-authority/32UF,Planning,Electricity,18/09/2014,IJ00032727,3372.00,Lincolnshire County Council,
South Holland District Council,http://statistics.data.gov.uk/id/local-authority/32UF,Environmental Services,Maintenance,18/09/2014,IJ00032804,1643.32,Lms Lincoln Ltd,
South Holland District Council,http://statistics.data.gov.uk/id/local-authority/32UF,Environmental Health,Legal Fees,18/09/2014,IJ00032714,800.00,Maples Solicitors,
South Holland District Council,http://statistics.data.gov.uk/id/local-authority/32UF,Asset and Property,Electricity,18/09/2014,IJ00032844,2023.87,Southern Electric,
South Holland District Council,http://statistics.data.gov.uk/id/local-authority/32UF,Housing Landlord Manager,Electricity,18/09/2014,IJ00032829,55.40,Southern Electric,
South Holland District Council,http://statistics.data.gov.uk/id/local-authority/32UF,Housing Landlord Manager,Electricity,18/09/2014,IJ00032829,3174.99,Southern Electric,
South Holland District Council,http://statistics.data.gov.uk/id/local-authority/32UF,Housing Landlord Manager,Electricity,18/09/2014,IJ00032829,29.21,Southern Electric,
South Holland District Council,http://statistics.data.gov.uk/id/local-authority/32UF,Housing Landlord Manager,Electricity,18/09/2014,IJ00032829,190.40,Southern Electric,
South Holland District Council,http://statistics.data.gov.uk/id/local-authority/32UF,Housing Landlord Manager,Electricity,18/09/2014,IJ00032829,63.86,Southern Electric,
South Holland District Council,http://statistics.data.gov.uk/id/local-authority/32UF,Environmental Services,Electricity,18/09/2014,IJ00032829,121.29,Southern Electric,
South Holland District Council,http://statistics.data.gov.uk/id/local-authority/32UF,Environmental Services,Electricity,18/09/2014,IJ00032829,337.40,Southern Electric,
South Holland District Council,http://statistics.data.gov.uk/id/local-authority/32UF,Environmental Services,Electricity,18/09/2014,IJ00032829,34.32,Southern Electric,
South Holland District Council,http://statistics.data.gov.uk/id/local-authority/32UF,Environmental Services,Electricity,18/09/2014,IJ00032829,205.73,Southern Electric,
South Holland District Council,http://statistics.data.gov.uk/id/local-authority/32UF,Housing Landlord Manager,Electricity,18/09/2014,IJ00032829,147.48,Southern Electric,
South Holland District Council,http://statistics.data.gov.uk/id/local-authority/32UF,Housing Landlord Manager,Electricity,18/09/2014,IJ00032829,187.90,Southern Electric,
South Holland District Council,http://statistics.data.gov.uk/id/local-authority/32UF,Housing Landlord Manager,Electricity,18/09/2014,IJ00032829,43.96,Southern Electric,
South Holland District Council,http://statistics.data.gov.uk/id/local-authority/32UF,Housing Landlord Manager,Electricity,18/09/2014,IJ00032829,385.67,Southern Electric,
South Holland District Council,http://statistics.data.gov.uk/id/local-authority/32UF,Housing Landlord Manager,Electricity,18/09/2014,IJ00032829,109.85,Southern Electric,
South Holland District Council,http://statistics.data.gov.uk/id/local-authority/32UF,Housing Landlord Manager,Electricity,18/09/2014,IJ00032829,115.10,Southern Electric,
South Holland District Council,http://statistics.data.gov.uk/id/local-authority/32UF,Housing Landlord Manager,Electricity,18/09/2014,IJ00032829,408.35,Southern Electric,
South Holland District Council,http://statistics.data.gov.uk/id/local-authority/32UF,Housing Landlord Manager,Electricity,18/09/2014,IJ00032829,116.55,Southern Electric,
South Holland District Council,http://statistics.data.gov.uk/id/local-authority/32UF,Housing Landlord Manager,Electricity,18/09/2014,IJ00032829,175.22,Southern Electric,
South Holland District Council,http://statistics.data.gov.uk/id/local-authority/32UF,Housing Landlord Manager,Electricity,18/09/2014,IJ00032829,86.13,Southern Electric,
South Holland District Council,http://statistics.data.gov.uk/id/local-authority/32UF,Housing Landlord Manager,Electricity,18/09/2014,IJ00032829,53.75,Southern Electric,
South Holland District Council,http://statistics.data.gov.uk/id/local-authority/32UF,Housing Landlord Manager,Electricity,18/09/2014,IJ00032829,70.38,Southern Electric,
South Holland District Council,http://statistics.data.gov.uk/id/local-authority/32UF,Housing Landlord Manager,Electricity,18/09/2014,IJ00032829,45.88,Southern Electric,
South Holland District Council,http://statistics.data.gov.uk/id/local-authority/32UF,Housing Landlord Manager,Electricity,18/09/2014,IJ00032829,69.61,Southern Electric,
South Holland District Council,http://statistics.data.gov.uk/id/local-authority/32UF,Housing Landlord Manager,Electricity,18/09/2014,IJ00032829,79.42,Southern Electric,
South Holland District Council,http://statistics.data.gov.uk/id/local-authority/32UF,Housing Landlord Manager,Electricity,18/09/2014,IJ00032829,31.79,Southern Electric,
South Holland District Council,http://statistics.data.gov.uk/id/local-authority/32UF,Housing Landlord Manager,Electricity,18/09/2014,IJ00032829,54.86,Southern Electric,
South Holland District Council,http://statistics.data.gov.uk/id/local-authority/32UF,Housing Landlord Manager,Electricity,18/09/2014,IJ00032829,44.89,Southern Electric,
South Holland District Council,http://statistics.data.gov.uk/id/local-authority/32UF,Asset and Property,Electricity,18/09/2014,IJ00032829,46.07,Southern Electric,
South Holland District Council,http://statistics.data.gov.uk/id/local-authority/32UF,Asset and Property,Electricity,18/09/2014,IJ00032829,41.67,Southern Electric,
South Holland District Council,http://statistics.data.gov.uk/id/local-authority/32UF,Community Development,Electricity,18/09/2014,IJ00032829,89.58,Southern Electric,
South Holland District Council,http://statistics.data.gov.uk/id/local-authority/32UF,Environmental Services,Professional & Contractors Fees,18/09/2014,IJ00032746,1100.00,South Holland Maintenance Ltd,
South Holland District Council,http://statistics.data.gov.uk/id/local-authority/32UF,Environmental Services,Professional & Contractors Fees,18/09/2014,IJ00032748,1080.00,South Holland Maintenance Ltd,
South Holland District Council,http://statistics.data.gov.uk/id/local-authority/32UF,Housing Landlord Manager,Grounds Maintenance Recharge,18/09/2014,IJ00032760,720.00,South Holland Maintenance Ltd,
South Holland District Council,http://statistics.data.gov.uk/id/local-authority/32UF,Democratic Services,Other Miscellaneous Expenses,18/09/2014,IJ00032861,800.00,Sutton Bridge Westmere C. P. School,
South Holland District Council,http://statistics.data.gov.uk/id/local-authority/32UF,Environmental Services,Agency Staff,18/09/2014,IJ00032723,191.04,The Best Connection Group Ltd,
South Holland District Council,http://statistics.data.gov.uk/id/local-authority/32UF,Environmental Services,Agency Staff,18/09/2014,IJ00032723,1320.96,The Best Connection Group Ltd,
South Holland District Council,http://statistics.data.gov.uk/id/local-authority/32UF,Planning,Grounds Maintenance Contract (External),18/09/2014,IJ00032767,520.00,W R Kerfoot & Partners,
South Holland District Council,http://statistics.data.gov.uk/id/local-authority/32UF,Housing,Other Miscellaneous Expenses,18/09/2014,IJ00032855,29757.00,Broadgate Builders (Spalding) Ltd,
South Holland District Council,http://statistics.data.gov.uk/id/local-authority/32UF,Housing,Grants and Contributions to Outside Bodies- No Service Recei,18/09/2014,IJ00032715,6780.00,REDACTED PERSONAL INFORMATION,REDACTED
South Holland District Council,http://statistics.data.gov.uk/id/local-authority/32UF,Asset and Property,Furniture and Equipment,18/09/2014,IJ00032838,830.00,E.on Sustainable Energy,
South Holland District Council,http://statistics.data.gov.uk/id/local-authority/32UF,Asset and Property,Other Miscellaneous Expenses,18/09/2014,IJ00032845,6687.45,E.on Sustainable Energy,
South Holland District Council,http://statistics.data.gov.uk/id/local-authority/32UF,Asset and Property,Buildings Maintenance - Programmed,18/09/2014,IJ00032846,1946.20,Wrights Flooring and Carpets Ltd,
South Holland District Council,http://statistics.data.gov.uk/id/local-authority/32UF,Environmental Services,Other Communication Costs,18/09/2014,IJ00032752,2700.00,Bartec Auto ID Ltd,
South Holland District Council,http://statistics.data.gov.uk/id/local-authority/32UF,ICT and Customer Services,Professional & Contractors Fees,18/09/2014,IJ00032862,4137.50,Applause IT,
South Holland District Council,http://statistics.data.gov.uk/id/local-authority/32UF,Economic Development,Grants and Contributions to Outside Bodies- No Service Recei,18/09/2014,IJ00032839,14500.00,SHD Composite Materials Ltd,
South Holland District Council,http://statistics.data.gov.uk/id/local-authority/32UF,Environmental Services,Other Communication Costs,18/09/2014,IJ00032735,1000.00,REDACTED PERSONAL INFORMATION,REDACTED
South Holland District Council,http://statistics.data.gov.uk/id/local-authority/32UF,Economic Development,Grants and Contributions- Where a Service is Received,18/09/2014,IJ00032774,1700.00,Rose Regeneration Limited,
South Holland District Council,http://statistics.data.gov.uk/id/local-authority/32UF,Housing Landlord Manager,Professional & Contractors Fees,18/09/2014,IJ00032805,500.00,Whiteheads Soliciitors Ltd,
South Holland District Council,http://statistics.data.gov.uk/id/local-authority/32UF,Democratic Services,Other Miscellaneous Expenses,18/09/2014,IJ00032851,2700.00,Lincolnshire Artist Forum,
South Holland District Council,http://statistics.data.gov.uk/id/local-authority/32UF,Environmental Services,Agency Staff,25/09/2014,IJ00032936,333.00,247 Personnel Ltd,
South Holland District Council,http://statistics.data.gov.uk/id/local-authority/32UF,Environmental Services,Agency Staff,25/09/2014,IJ00032936,333.00,247 Personnel Ltd,
South Holland District Council,http://statistics.data.gov.uk/id/local-authority/32UF,Environmental Services,Agency Staff,25/09/2014,IJ00032938,71.82,247 Personnel Ltd,
South Holland District Council,http://statistics.data.gov.uk/id/local-authority/32UF,Environmental Services,Agency Staff,25/09/2014,IJ00032938,442.02,247 Personnel Ltd,
South Holland District Council,http://statistics.data.gov.uk/id/local-authority/32UF,Environmental Services,Agency Staff,25/09/2014,IJ00032935,859.15,247 Personnel Ltd,
South Holland District Council,http://statistics.data.gov.uk/id/local-authority/32UF,Community Development,Premises and Room Hire,25/09/2014,IJ00032907,-318.33,50 plus Sports and Social Club,
South Holland District Council,http://statistics.data.gov.uk/id/local-authority/32UF,Community Development,Other Hire Fees,25/09/2014,IJ00032907,-269.17,50 plus Sports and Social Club,
South Holland District Council,http://statistics.data.gov.uk/id/local-authority/32UF,Community Development,Payments to Bodies in Respect of Income Collected,25/09/2014,IJ00032907,4484.00,50 plus Sports and Social Club,
South Holland District Council,http://statistics.data.gov.uk/id/local-authority/32UF,Community Development,Commission,25/09/2014,IJ00032907,-373.67,50 plus Sports and Social Club,
South Holland District Council,http://statistics.data.gov.uk/id/local-authority/32UF,Community Development,Commission,25/09/2014,IJ00032907,-18.33,50 plus Sports and Social Club,
South Holland District Council,http://statistics.data.gov.uk/id/local-authority/32UF,Housing Landlord Manager,Materials and Consumables,25/09/2014,IJ00032961,560.05,B Ayres,
South Holland District Council,http://statistics.data.gov.uk/id/local-authority/32UF,Housing Landlord Manager,Materials and Consumables,25/09/2014,IJ00032961,350.25,B Ayres,
South Holland District Council,http://statistics.data.gov.uk/id/local-authority/32UF,Housing Landlord Manager,Materials and Consumables,25/09/2014,IJ00032961,75.35,B Ayres,
South Holland District Council,http://statistics.data.gov.uk/id/local-authority/32UF,Environmental Services,Agency Staff,25/09/2014,IJ00032903,379.23,Blue Arrow Ltd,
South Holland District Council,http://statistics.data.gov.uk/id/local-authority/32UF,Environmental Services,Agency Staff,25/09/2014,IJ00032903,877.99,Blue Arrow Ltd,
South Holland District Council,http://statistics.data.gov.uk/id/local-authority/32UF,Environmental Services,Agency Staff,25/09/2014,IJ00032903,1988.55,Blue Arrow Ltd,
South Holland District Council,http://statistics.data.gov.uk/id/local-authority/32UF,Environmental Services,Agency Staff,25/09/2014,IJ00032903,613.41,Blue Arrow Ltd,
South Holland District Council,http://statistics.data.gov.uk/id/local-authority/32UF,Environmental Services,Agency Staff,25/09/2014,IJ00032903,96.74,Blue Arrow Ltd,
South Holland District Council,http://statistics.data.gov.uk/id/local-authority/32UF,Housing Landlord Manager,Damp Proofing,25/09/2014,IJ00032867,1565.00,British Waterproofing,
South Holland District Council,http://statistics.data.gov.uk/id/local-authority/32UF,Housing Landlord Manager,Fuel & Oil,25/09/2014,IJ00032939,576.64,C H Jones Ltd,
South Holland District Council,http://statistics.data.gov.uk/id/local-authority/32UF,Environmental Services,Fuel & Oil,25/09/2014,IJ00032939,238.47,C H Jones Ltd,
South Holland District Council,http://statistics.data.gov.uk/id/local-authority/32UF,Environmental Services,Fuel & Oil,25/09/2014,IJ00032939,1774.40,C H Jones Ltd,
South Holland District Council,http://statistics.data.gov.uk/id/local-authority/32UF,Environmental Services,Fuel & Oil,25/09/2014,IJ00032939,445.87,C H Jones Ltd,
South Holland District Council,http://statistics.data.gov.uk/id/local-authority/32UF,Environmental Services,Fuel & Oil,25/09/2014,IJ00032939,2713.89,C H Jones Ltd,
South Holland District Council,http://statistics.data.gov.uk/id/local-authority/32UF,Housing Landlord Manager,Fuel & Oil,25/09/2014,IJ00032939,299.00,C H Jones Ltd,
South Holland District Council,http://statistics.data.gov.uk/id/local-authority/32UF,Housing Landlord Manager,Fuel & Oil,25/09/2014,IJ00032939,145.63,C H Jones Ltd,
South Holland District Council,http://statistics.data.gov.uk/id/local-authority/32UF,Environmental Services,Fuel & Oil,25/09/2014,IJ00032939,21.49,C H Jones Ltd,
South Holland District Council,http://statistics.data.gov.uk/id/local-authority/32UF,Environmental Services,Fuel & Oil,25/09/2014,IJ00032939,2.66,C H Jones Ltd,
South Holland District Council,http://statistics.data.gov.uk/id/local-authority/32UF,Environmental Health,Fuel & Oil,25/09/2014,IJ00032939,42.21,C H Jones Ltd,
South Holland District Council,http://statistics.data.gov.uk/id/local-authority/32UF,Housing Landlord Manager,Fuel & Oil,25/09/2014,IJ00032927,427.25,C H Jones Ltd,
South Holland District Council,http://statistics.data.gov.uk/id/local-authority/32UF,Environmental Services,Fuel & Oil,25/09/2014,IJ00032927,265.16,C H Jones Ltd,
South Holland District Council,http://statistics.data.gov.uk/id/local-authority/32UF,Environmental Services,Fuel & Oil,25/09/2014,IJ00032927,1259.06,C H Jones Ltd,
South Holland District Council,http://statistics.data.gov.uk/id/local-authority/32UF,Environmental Services,Fuel & Oil,25/09/2014,IJ00032927,657.44,C H Jones Ltd,
South Holland District Council,http://statistics.data.gov.uk/id/local-authority/32UF,Environmental Services,Fuel & Oil,25/09/2014,IJ00032927,2937.84,C H Jones Ltd,
South Holland District Council,http://statistics.data.gov.uk/id/local-authority/32UF,Housing Landlord Manager,Fuel & Oil,25/09/2014,IJ00032927,132.42,C H Jones Ltd,
South Holland District Council,http://statistics.data.gov.uk/id/local-authority/32UF,Housing Landlord Manager,Fuel & Oil,25/09/2014,IJ00032927,74.24,C H Jones Ltd,
South Holland District Council,http://statistics.data.gov.uk/id/local-authority/32UF,Environmental Services,Fuel & Oil,25/09/2014,IJ00032927,23.69,C H Jones Ltd,
South Holland District Council,http://statistics.data.gov.uk/id/local-authority/32UF,Environmental Services,Fuel & Oil,25/09/2014,IJ00032927,5.10,C H Jones Ltd,
South Holland District Council,http://statistics.data.gov.uk/id/local-authority/32UF,Environmental Health,Fuel & Oil,25/09/2014,IJ00032927,56.03,C H Jones Ltd,
South Holland District Council,http://statistics.data.gov.uk/id/local-authority/32UF,Housing Landlord Manager,Buildings Maintenance - Responsive,25/09/2014,IJ00033011,2301.86,Cirrus Communication Systems Ltd,
South Holland District Council,http://statistics.data.gov.uk/id/local-authority/32UF,Collection Fund,Central Share of NDR Income - Government,25/09/2014,IJ00033010,1322851.00,Department For Communities & Local Government,
South Holland District Council,http://statistics.data.gov.uk/id/local-authority/32UF,Collection Fund,Transitional Protection Payments,25/09/2014,IJ00033010,-43763.00,Department For Communities & Local Government,
South Holland District Council,http://statistics.data.gov.uk/id/local-authority/32UF,Finance,Business Rates Tariff,25/09/2014,IJ00033010,689770.00,Department For Communities & Local Government,
South Holland District Council,http://statistics.data.gov.uk/id/local-authority/32UF,Collection Fund,Contribution to Deficit (NDR),25/09/2014,IJ00033010,-12504.00,Department For Communities & Local Government,
South Holland District Council,http://statistics.data.gov.uk/id/local-authority/32UF,HR,Other Employee Expenses,25/09/2014,IJ00032910,75.86,Fideliti Limited,
South Holland District Council,http://statistics.data.gov.uk/id/local-authority/32UF,Balance Sheet,Payroll SHDC Child Care,25/09/2014,IJ00032910,1896.50,Fideliti Limited,
South Holland District Council,http://statistics.data.gov.uk/id/local-authority/32UF,Environmental Services,Other Miscellaneous Expenses,25/09/2014,IJ00032898,340.00,Freight Transport Association,
South Holland District Council,http://statistics.data.gov.uk/id/local-authority/32UF,Environmental Services,Other Miscellaneous Expenses,25/09/2014,IJ00032898,340.00,Freight Transport Association,
South Holland District Council,http://statistics.data.gov.uk/id/local-authority/32UF,Housing Landlord Manager,Buildings Maintenance - Responsive,25/09/2014,IJ00032953,1920.00,G W Engineering (Lincs) Ltd,
South Holland District Council,http://statistics.data.gov.uk/id/local-authority/32UF,Housing Landlord Manager,Buildings Maintenance - Responsive,25/09/2014,IJ00032955,720.00,G W Engineering (Lincs) Ltd,
South Holland District Council,http://statistics.data.gov.uk/id/local-authority/32UF,Environmental Services,Agency Staff,25/09/2014,IJ00032904,299.52,Integrity Plus Ltd,
South Holland District Council,http://statistics.data.gov.uk/id/local-authority/32UF,Environmental Services,Agency Staff,25/09/2014,IJ00032904,363.33,Integrity Plus Ltd,
South Holland District Council,http://statistics.data.gov.uk/id/local-authority/32UF,Revs and Bens,VAT Customs and Excise,25/09/2014,IJ00032887,600.61,Jacobs Certificated Bailiffs,
South Holland District Council,http://statistics.data.gov.uk/id/local-authority/32UF,Housing Landlord Manager,Agency Staff,25/09/2014,IJ00032918,848.78,James Andrews Recruitment Solutions,
South Holland District Council,http://statistics.data.gov.uk/id/local-authority/32UF,Housing Landlord Manager,Grounds Maintenance Recharge,25/09/2014,IJ00033014,2302.00,K L Morbey Fencing,
South Holland District Council,http://statistics.data.gov.uk/id/local-authority/32UF,Housing Landlord Manager,Other Miscellaneous Expenses,25/09/2014,IJ00032945,807.45,Lincolnshire County Council,
South Holland District Council,http://statistics.data.gov.uk/id/local-authority/32UF,Housing,Grants and Contributions to Outside Bodies- No Service Recei,25/09/2014,IJ00032917,1881.00,M E Goodyear Property Maintenance,
South Holland District Council,http://statistics.data.gov.uk/id/local-authority/32UF,Housing,Grants and Contributions to Outside Bodies- No Service Recei,25/09/2014,IJ00032915,3316.00,M E Goodyear Property Maintenance,
South Holland District Council,http://statistics.data.gov.uk/id/local-authority/32UF,Housing Landlord Manager,Commercial Vehicle Lease,25/09/2014,IJ00032977,198.72,Navman Wireless Uk Ltd,
South Holland District Council,http://statistics.data.gov.uk/id/local-authority/32UF,Housing Landlord Manager,Commercial Vehicle Lease,25/09/2014,IJ00032977,927.36,Navman Wireless Uk Ltd,
South Holland District Council,http://statistics.data.gov.uk/id/local-authority/32UF,Housing Landlord Manager,Commercial Vehicle Lease,25/09/2014,IJ00032977,529.92,Navman Wireless Uk Ltd,
South Holland District Council,http://statistics.data.gov.uk/id/local-authority/32UF,Housing,Grants and Contributions to Outside Bodies- No Service Recei,25/09/2014,IJ00032933,1480.00,Obam Lift Services Ltd,
South Holland District Council,http://statistics.data.gov.uk/id/local-authority/32UF,Housing Landlord Manager,Buildings Maintenance - Responsive,25/09/2014,IJ00032999,1650.00,Obam Lift Services Ltd,
South Holland District Council,http://statistics.data.gov.uk/id/local-authority/32UF,Planning,Grants and Contributions to Outside Bodies- No Service Recei,25/09/2014,IJ00032925,825.00,Plann.It Limited,
South Holland District Council,http://statistics.data.gov.uk/id/local-authority/32UF,Housing Landlord Manager,Materials and Consumables,25/09/2014,IJ00032973,696.37,Rexel Uk Ltd,
South Holland District Council,http://statistics.data.gov.uk/id/local-authority/32UF,Housing Landlord Manager,Materials and Consumables,25/09/2014,IJ00032954,1002.24,Rexel Uk Ltd,
South Holland District Council,http://statistics.data.gov.uk/id/local-authority/32UF,Democratic Services,Postages,25/09/2014,IJ00032869,833.33,Royal Mail Group Ltd,
South Holland District Council,http://statistics.data.gov.uk/id/local-authority/32UF,Housing Landlord Manager,Buildings Maintenance - Responsive,25/09/2014,IJ00032958,660.00,South Holland Maintenance Ltd,
South Holland District Council,http://statistics.data.gov.uk/id/local-authority/32UF,Housing Landlord Manager,Buildings Maintenance - Responsive,25/09/2014,IJ00032960,660.00,South Holland Maintenance Ltd,
South Holland District Council,http://statistics.data.gov.uk/id/local-authority/32UF,Housing,Grants and Contributions to Outside Bodies- No Service Recei,25/09/2014,IJ00032914,3917.00,Stuart Taplin,
South Holland District Council,http://statistics.data.gov.uk/id/local-authority/32UF,Capital,Works to Buildings (main Contractor),25/09/2014,IJ00032916,2160.00,Stuart Taplin,
South Holland District Council,http://statistics.data.gov.uk/id/local-authority/32UF,Environmental Services,Agency Staff,25/09/2014,IJ00032902,274.62,The Best Connection Group Ltd,
South Holland District Council,http://statistics.data.gov.uk/id/local-authority/32UF,Environmental Services,Agency Staff,25/09/2014,IJ00032902,608.94,The Best Connection Group Ltd,
South Holland District Council,http://statistics.data.gov.uk/id/local-authority/32UF,Environmental Services,Agency Staff,25/09/2014,IJ00032902,281.88,The Best Connection Group Ltd,
South Holland District Council,http://statistics.data.gov.uk/id/local-authority/32UF,Housing Landlord Manager,Materials and Consumables,25/09/2014,IJ00032976,420.00,Trent Fireplaces,
South Holland District Council,http://statistics.data.gov.uk/id/local-authority/32UF,Housing Landlord Manager,Materials and Consumables,25/09/2014,IJ00032976,420.00,Trent Fireplaces,
South Holland District Council,http://statistics.data.gov.uk/id/local-authority/32UF,Finance,Fees and Charges General,25/09/2014,IJ00032921,-29.29,UNISON,
South Holland District Council,http://statistics.data.gov.uk/id/local-authority/32UF,Balance Sheet,Payroll-Unison,25/09/2014,IJ00032921,1171.55,UNISON,
South Holland District Council,http://statistics.data.gov.uk/id/local-authority/32UF,Environmental Services,Tyres,25/09/2014,IJ00033002,1257.52,Vaculug Traction Tyres Ltd,
South Holland District Council,http://statistics.data.gov.uk/id/local-authority/32UF,Environmental Services,Tyres,25/09/2014,IJ00033002,1739.20,Vaculug Traction Tyres Ltd,
South Holland District Council,http://statistics.data.gov.uk/id/local-authority/32UF,Environmental Services,Tyres,25/09/2014,IJ00033002,20.00,Vaculug Traction Tyres Ltd,
South Holland District Council,http://statistics.data.gov.uk/id/local-authority/32UF,Environmental Services,Tyres,25/09/2014,IJ00033002,152.51,Vaculug Traction Tyres Ltd,
South Holland District Council,http://statistics.data.gov.uk/id/local-authority/32UF,Environmental Services,Tyres,25/09/2014,IJ00033002,153.42,Vaculug Traction Tyres Ltd,
South Holland District Council,http://statistics.data.gov.uk/id/local-authority/32UF,Environmental Services,Tyres,25/09/2014,IJ00033002,21.25,Vaculug Traction Tyres Ltd,
South Holland District Council,http://statistics.data.gov.uk/id/local-authority/32UF,Housing Landlord Manager,Void Repairs,25/09/2014,IJ00032967,710.00,Spotless Cleaning,
South Holland District Council,http://statistics.data.gov.uk/id/local-authority/32UF,Housing Landlord Manager,Void Repairs,25/09/2014,IJ00032968,660.00,Spotless Cleaning,
South Holland District Council,http://statistics.data.gov.uk/id/local-authority/32UF,Housing Landlord Manager,Buildings Maintenance - Responsive,25/09/2014,IJ00033015,3436.00,Ulric Hilliam Construction,
South Holland District Council,http://statistics.data.gov.uk/id/local-authority/32UF,Asset and Property,Furniture and Equipment,25/09/2014,IJ00032871,840.00,E.on Sustainable Energy,
South Holland District Council,http://statistics.data.gov.uk/id/local-authority/32UF,Housing Landlord Manager,Furniture and Equipment,25/09/2014,IJ00032978,543.24,VEOLIA ES UK LTD,
South Holland District Council,http://statistics.data.gov.uk/id/local-authority/32UF,Housing Landlord Manager,Furniture and Equipment,25/09/2014,IJ00032978,543.23,VEOLIA ES UK LTD,
South Holland District Council,http://statistics.data.gov.uk/id/local-authority/32UF,Housing Landlord Manager,Furniture and Equipment,25/09/2014,IJ00032979,329.84,VEOLIA ES UK LTD,
South Holland District Council,http://statistics.data.gov.uk/id/local-authority/32UF,Housing Landlord Manager,Furniture and Equipment,25/09/2014,IJ00032979,329.84,VEOLIA ES UK LTD,
South Holland District Council,http://statistics.data.gov.uk/id/local-authority/32UF,Capital,Works to Buildings (main Contractor),25/09/2014,IJ00032912,500.00,MPL HOME IMPROVEMENTS SERVICES LINCS LTD,
South Holland District Council,http://statistics.data.gov.uk/id/local-authority/32UF,Capital,Works to Buildings (main Contractor),25/09/2014,IJ00032913,3890.00,MPL HOME IMPROVEMENTS SERVICES LINCS LTD,
South Holland District Council,http://statistics.data.gov.uk/id/local-authority/32UF,Housing Landlord Manager,Buildings Maintenance - Responsive,25/09/2014,IJ00032970,561.00,Andrew Hicks t a Hicks Electrical,
South Holland District Council,http://statistics.data.gov.uk/id/local-authority/32UF,Housing Landlord Manager,External Painting Repairs,25/09/2014,IJ00032982,21299.00,Novus Property Solutions Ltd,
South Holland District Council,http://statistics.data.gov.uk/id/local-authority/32UF,Capital,Works to Buildings (main Contractor),25/09/2014,IJ00032983,2620.00,MCP Environmental,
South Holland District Council,http://statistics.data.gov.uk/id/local-authority/32UF,Housing Landlord Manager,Buildings Maintenance - Responsive,25/09/2014,IJ00032892,270.00,Tim Medford and Son,
South Holland District Council,http://statistics.data.gov.uk/id/local-authority/32UF,Housing Landlord Manager,Buildings Maintenance - Responsive,25/09/2014,IJ00032892,270.00,Tim Medford and Son,
South Holland District Council,http://statistics.data.gov.uk/id/local-authority/32UF,Housing Landlord Manager,Gas Servicing,25/09/2014,IJ00032981,14559.17,Aaron Services Ltd,
South Holland District Council,http://statistics.data.gov.uk/id/local-authority/32UF,Housing Landlord Manager,Gas Renewals,25/09/2014,IJ00032984,7224.84,Aaron Services Ltd,
South Holland District Council,http://statistics.data.gov.uk/id/local-authority/32UF,Housing Landlord Manager,Gas Repairs,25/09/2014,IJ00032987,4542.59,Aaron Services Ltd,
South Holland District Council,http://statistics.data.gov.uk/id/local-authority/32UF,Economic Development,Grants and Contributions to Outside Bodies- No Service Recei,25/09/2014,IJ00032870,1400.00,Peakhill Assocaites,
South Holland District Council,http://statistics.data.gov.uk/id/local-authority/32UF,Environmental Services,Materials and Consumables,25/09/2014,IJ00033017,592.00,SOUND ADVICE SAFETY AND HEALTH LTD,
South Holland District Council,http://statistics.data.gov.uk/id/local-authority/32UF,Housing Landlord Manager,Course Fees,25/09/2014,IJ00033017,888.00,SOUND ADVICE SAFETY AND HEALTH LTD,
South Holland District Council,http://statistics.data.gov.uk/id/local-authority/32UF,Democratic Services,Other Miscellaneous Expenses,25/09/2014,IJ00031498,600.00,Police and Crime Commissioner for Lincolnshire,
South Holland District Council,http://statistics.data.gov.uk/id/local-authority/32UF,Environmental Services,Clothing Uniforms And Laundry,25/09/2014,IJ00033006,1540.65,SMI Group,
South Holland District Council,http://statistics.data.gov.uk/id/local-authority/32UF,Community Development,Premises and Room Hire,25/09/2014,IJ00032906,-90.83,Saltmine Trust,
South Holland District Council,http://statistics.data.gov.uk/id/local-authority/32UF,Community Development,Other Hire Fees,25/09/2014,IJ00032906,-136.67,Saltmine Trust,
South Holland District Council,http://statistics.data.gov.uk/id/local-authority/32UF,Community Development,Payments to Bodies in Respect of Income Collected,25/09/2014,IJ00032906,1054.00,Saltmine Trust,
South Holland District Council,http://statistics.data.gov.uk/id/local-authority/32UF,Community Development,Commission,25/09/2014,IJ00032906,-87.83,Saltmine Trust,
South Holland District Council,http://statistics.data.gov.uk/id/local-authority/32UF,Asset and Property,Professional & Contractors Fees,25/09/2014,IJ00032878,4424.76,Trowers and Hamlins,
South Holland District Council,http://statistics.data.gov.uk/id/local-authority/32UF,Asset and Property,Professional & Contractors Fees,25/09/2014,IJ00032879,2600.00,Trowers and Hamlins,
South Holland District Council,http://statistics.data.gov.uk/id/local-authority/32UF,Economic Development,Grants and Contributions to Outside Bodies- No Service Recei,25/09/2014,IJ00032932,4950.00,PRODUCTIVE DESGIN LTD,
South Holland District Council,http://statistics.data.gov.uk/id/local-authority/32UF,Housing Landlord Manager,Course Fees,25/09/2014,IJ00032946,1500.00,VULCAN FIRE TRAINING LTD,
South Holland District Council,http://statistics.data.gov.uk/id/local-authority/32UF,Asset and Property,Buildings Maintenance - Responsive,25/09/2014,IJ00033018,935.00,BRECKLAND INDUSTRIAL LTD,
